[Event "*** Titled Tuesday Blitz"]
[Site "Chess.com"]
[Date "2020.10.20"]
[Round "7"]
[White "shnitez"]
[Black "gumimis"]
[Result "1-0"]
[WhiteElo "2443"]
[BlackElo "2277"]
[TimeControl "180+1"]
[EndTime "11:19:19 PDT"]
[Termination "shnitez won by resignation"]

1. d4 {[%clk 0:03:00.9]} 1... Nf6 {[%clk 0:02:57.6]} 2. c4 {[%clk 0:03:00.4]}
2... c5 {[%clk 0:02:58.1]} 3. Nf3 {[%clk 0:02:59.8]} 3... b5 {[%clk 0:02:47.3]}
4. cxb5 {[%clk 0:02:38.1]} 4... a6 {[%clk 0:02:40.4]} 5. bxa6 {[%clk 0:02:21.6]}
5... d5 {[%clk 0:02:35.2]} 6. e3 {[%clk 0:02:04.4]} 6... c4 {[%clk 0:02:33.7]}
7. b3 {[%clk 0:02:02.9]} 7... Bxa6 {[%clk 0:02:28.6]} 8. bxc4 {[%clk 0:02:01.8]}
8... Bxc4 {[%clk 0:02:27.6]} 9. Bxc4 {[%clk 0:02:01.4]} 9... dxc4 {[%clk
0:02:28.5]} 10. O-O {[%clk 0:01:53.6]} 10... e6 {[%clk 0:02:26.2]} 11. a4 {[%clk
0:01:46.6]} 11... Bd6 {[%clk 0:02:22.7]} 12. Ba3 {[%clk 0:01:43.6]} 12... O-O
{[%clk 0:02:19.6]} 13. Qc2 {[%clk 0:01:37.5]} 13... Bxa3 {[%clk 0:02:05.2]} 14.
Nxa3 {[%clk 0:01:34.6]} 14... Qd7 {[%clk 0:02:01.2]} 15. Nxc4 {[%clk 0:01:32.2]}
15... Rc8 {[%clk 0:02:01.1]} 16. Qd3 {[%clk 0:01:26.1]} 16... Qc6 {[%clk
0:01:48.4]} 17. Nfe5 {[%clk 0:01:16.1]} 17... Qa6 {[%clk 0:01:47.5]} 18. Rfb1
{[%clk 0:01:10.3]} 18... Nbd7 {[%clk 0:01:45.4]} 19. a5 {[%clk 0:01:02.1]} 19...
Nxe5 {[%clk 0:01:41.1]} 20. Nxe5 {[%clk 0:01:01.4]} 20... Nd5 {[%clk 0:01:38]}
21. Qxa6 {[%clk 0:00:54.9]} 21... Rxa6 {[%clk 0:01:38.9]} 22. g3 {[%clk
0:00:44]} 22... Rca8 {[%clk 0:01:32.4]} 23. Rb7 {[%clk 0:00:36.5]} 23... f6
{[%clk 0:01:30.8]} 24. Nc4 {[%clk 0:00:26.4]} 24... Rc8 {[%clk 0:01:23.1]} 25.
Nb6 {[%clk 0:00:24.3]} 25... Nxb6 {[%clk 0:01:09.1]} 26. Rxb6 {[%clk 0:00:24.1]}
26... Rxb6 {[%clk 0:01:07.1]} 27. axb6 {[%clk 0:00:24.2]} 27... Rb8 {[%clk
0:01:07.7]} 28. Rb1 {[%clk 0:00:23.8]} 28... Kf7 {[%clk 0:01:08.2]} 29. Kf1
{[%clk 0:00:24.2]} 29... Ke7 {[%clk 0:01:09.1]} 30. Ke2 {[%clk 0:00:24.7]} 30...
Kd6 {[%clk 0:01:10]} 31. Kd3 {[%clk 0:00:25.2]} 31... Kc6 {[%clk 0:01:10.9]} 32.
Kc4 {[%clk 0:00:25.6]} 32... Rxb6 {[%clk 0:01:11.5]} 33. Rxb6+ {[%clk
0:00:25.1]} 33... Kxb6 {[%clk 0:01:12.2]} 34. d5 {[%clk 0:00:26]} 34... Kc7
{[%clk 0:01:10.6]} 35. Kc5 {[%clk 0:00:24.3]} 35... exd5 {[%clk 0:01:10]} 36.
Kxd5 {[%clk 0:00:25.2]} 36... Kd7 {[%clk 0:01:09.8]} 37. e4 {[%clk 0:00:25.1]}
37... Ke7 {[%clk 0:01:05.1]} 38. f4 {[%clk 0:00:25.5]} 38... h5 {[%clk 0:01:02]}
39. e5 {[%clk 0:00:25.3]} 39... fxe5 {[%clk 0:01:02.3]} 40. fxe5 {[%clk
0:00:26.2]} 40... g6 {[%clk 0:01:01]} 41. e6 {[%clk 0:00:26.6]} 41... g5 {[%clk
0:01:00.7]} 42. Ke5 {[%clk 0:00:24.9]} 42... h4 {[%clk 0:00:59.5]} 43. g4 {[%clk
0:00:25.1]} 43... h3 {[%clk 0:00:58]} 44. Kf5 {[%clk 0:00:25.5]} 44... Kd6
{[%clk 0:00:57]} 45. Kf6 {[%clk 0:00:25.9]} 1-0

[Event "*** Titled Tuesday Blitz"]
[Site "Chess.com"]
[Date "2020.10.20"]
[Round "7"]
[White "gagtemp"]
[Black "Bwert2602"]
[Result "0-1"]
[WhiteElo "1958"]
[BlackElo "2260"]
[TimeControl "180+1"]
[EndTime "11:19:19 PDT"]
[Termination "Bwert2602 won by resignation"]

1. e4 {[%clk 0:03:00.9]} 1... e6 {[%clk 0:02:57.5]} 2. d4 {[%clk 0:02:59.2]}
2... d5 {[%clk 0:02:57]} 3. Nc3 {[%clk 0:02:59.3]} 3... dxe4 {[%clk 0:02:55]} 4.
Nxe4 {[%clk 0:03:00.2]} 4... Nf6 {[%clk 0:02:54.8]} 5. Nxf6+ {[%clk 0:02:56.5]}
5... gxf6 {[%clk 0:02:54.5]} 6. Be3 {[%clk 0:02:56.2]} 6... Bd7 {[%clk
0:02:52.6]} 7. Qd2 {[%clk 0:02:56]} 7... Bc6 {[%clk 0:02:50.5]} 8. O-O-O {[%clk
0:02:54.8]} 8... Nd7 {[%clk 0:02:50.6]} 9. Kb1 {[%clk 0:02:54.5]} 9... b5 {[%clk
0:02:48.9]} 10. Nf3 {[%clk 0:02:52.4]} 10... Nb6 {[%clk 0:02:46.4]} 11. Bd3
{[%clk 0:02:45.1]} 11... Rg8 {[%clk 0:02:43.8]} 12. Rhg1 {[%clk 0:02:40.6]}
12... f5 {[%clk 0:02:38.5]} 13. Bh6 {[%clk 0:02:29.4]} 13... Be7 {[%clk
0:02:24.9]} 14. c3 {[%clk 0:02:00]} 14... Nc4 {[%clk 0:02:06]} 15. Qe2 {[%clk
0:01:45.1]} 15... Qd5 {[%clk 0:01:57.7]} 16. Bxc4 {[%clk 0:01:29.7]} 16... bxc4
{[%clk 0:01:56.8]} 17. Ne5 {[%clk 0:01:27.5]} 17... Qe4+ {[%clk 0:01:38.6]} 18.
Qxe4 {[%clk 0:01:23]} 18... Bxe4+ {[%clk 0:01:39.5]} 19. Ka1 {[%clk 0:01:19.5]}
19... Bd5 {[%clk 0:01:38.2]} 20. f3 {[%clk 0:01:15.3]} 20... f6 {[%clk
0:01:32.8]} 21. Nxc4 {[%clk 0:00:55.5]} 21... Bxc4 {[%clk 0:01:32.2]} 22. g3
{[%clk 0:00:49]} 22... Kf7 {[%clk 0:01:26.4]} 23. Rge1 {[%clk 0:00:47.5]} 23...
a5 {[%clk 0:01:17.5]} 24. Rd2 {[%clk 0:00:47.3]} 24... a4 {[%clk 0:01:16.2]} 25.
Bf4 {[%clk 0:00:43]} 25... Bd6 {[%clk 0:00:57.2]} 26. Be3 {[%clk 0:00:40.6]}
26... Rgb8 {[%clk 0:00:48.5]} 27. Bf2 {[%clk 0:00:39.5]} 27... Rb7 {[%clk
0:00:44.4]} 28. h4 {[%clk 0:00:38.2]} 28... Rab8 {[%clk 0:00:44]} 29. g4 {[%clk
0:00:37.1]} 29... Bf4 {[%clk 0:00:32.9]} 30. Rc2 {[%clk 0:00:30.2]} 30... Bd3
{[%clk 0:00:27.9]} 31. Rce2 {[%clk 0:00:30.1]} 31... Bxe2 {[%clk 0:00:26.5]} 32.
Rxe2 {[%clk 0:00:31]} 32... fxg4 {[%clk 0:00:25.4]} 33. fxg4 {[%clk 0:00:30.8]}
33... Bc1 {[%clk 0:00:24.6]} 34. Rc2 {[%clk 0:00:26.6]} 0-1

[Event "*** Titled Tuesday Blitz"]
[Site "Chess.com"]
[Date "2020.10.20"]
[Round "7"]
[White "1977Ivan"]
[Black "PotapovaM"]
[Result "1-0"]
[WhiteElo "2687"]
[BlackElo "2526"]
[TimeControl "180+1"]
[EndTime "11:19:28 PDT"]
[Termination "1977Ivan won by resignation"]

1. c4 {[%clk 0:03:00.9]} 1... Nf6 {[%clk 0:02:59.8]} 2. Nc3 {[%clk 0:03:00.3]}
2... e6 {[%clk 0:03:00.1]} 3. Nf3 {[%clk 0:02:59.3]} 3... d5 {[%clk 0:02:59.6]}
4. d4 {[%clk 0:02:59.5]} 4... dxc4 {[%clk 0:02:56.9]} 5. e3 {[%clk 0:02:57.2]}
5... a6 {[%clk 0:02:54.7]} 6. a4 {[%clk 0:02:57.3]} 6... c5 {[%clk 0:02:51.4]}
7. Bxc4 {[%clk 0:02:57.7]} 7... Nc6 {[%clk 0:02:50.5]} 8. O-O {[%clk 0:02:57.1]}
8... Be7 {[%clk 0:02:45.7]} 9. dxc5 {[%clk 0:02:56.2]} 9... Qxd1 {[%clk
0:02:46.6]} 10. Rxd1 {[%clk 0:02:56.5]} 10... Bxc5 {[%clk 0:02:47.2]} 11. Bd2
{[%clk 0:02:56.9]} 11... b6 {[%clk 0:02:46.8]} 12. Bd3 {[%clk 0:02:52.9]} 12...
Bb7 {[%clk 0:02:42.8]} 13. Ne4 {[%clk 0:02:50.5]} 13... Nxe4 {[%clk 0:02:43.2]}
14. Bxe4 {[%clk 0:02:50]} 14... f5 {[%clk 0:02:33.9]} 15. Bd3 {[%clk 0:02:42.8]}
15... Rd8 {[%clk 0:01:57.9]} 16. Bc3 {[%clk 0:02:41.2]} 16... Ke7 {[%clk
0:01:49.4]} 17. Bc4 {[%clk 0:02:34.4]} 17... Rxd1+ {[%clk 0:01:35]} 18. Rxd1
{[%clk 0:02:33.4]} 18... Rg8 {[%clk 0:01:34.4]} 19. Ng5 {[%clk 0:02:32.3]} 19...
Rd8 {[%clk 0:01:25.8]} 20. Rxd8 {[%clk 0:02:27.5]} 20... Nxd8 {[%clk 0:01:26.7]}
21. Bxg7 {[%clk 0:02:25.5]} 21... Bc6 {[%clk 0:01:25]} 22. Bxa6 {[%clk
0:02:05.9]} 22... Bxa4 {[%clk 0:01:25.2]} 23. Bc4 {[%clk 0:01:57.5]} 23... h5
{[%clk 0:01:18.9]} 24. h4 {[%clk 0:01:55.4]} 24... Bd1 {[%clk 0:01:15.6]} 25.
Kf1 {[%clk 0:01:50.9]} 25... Bb4 {[%clk 0:01:08.9]} 26. Bd4 {[%clk 0:01:49.3]}
26... Ba5 {[%clk 0:01:03.9]} 27. g3 {[%clk 0:01:43.3]} 27... Ba4 {[%clk
0:00:46.8]} 28. Be2 {[%clk 0:01:41.4]} 28... Be8 {[%clk 0:00:47.3]} 29. Nh3
{[%clk 0:01:37.6]} 29... Nc6 {[%clk 0:00:44.6]} 30. Bc3 {[%clk 0:01:30]} 30...
Bxc3 {[%clk 0:00:44.4]} 31. bxc3 {[%clk 0:01:30.1]} 31... e5 {[%clk 0:00:45.3]}
32. Ng5 {[%clk 0:01:24.6]} 32... Kd6 {[%clk 0:00:43.7]} 33. Ke1 {[%clk
0:01:22.6]} 33... Ne7 {[%clk 0:00:42.1]} 34. Kd2 {[%clk 0:01:21.9]} 34... Nd5
{[%clk 0:00:42.1]} 35. Bc4 {[%clk 0:01:21.3]} 35... Nf6 {[%clk 0:00:42]} 36. f3
{[%clk 0:01:19.3]} 36... Kc5 {[%clk 0:00:41.7]} 37. Bf7 {[%clk 0:01:17.3]} 37...
Bc6 {[%clk 0:00:33.4]} 38. Bg6 {[%clk 0:01:16.2]} 38... Bd7 {[%clk 0:00:24.7]}
39. e4 {[%clk 0:01:11.8]} 39... fxe4 {[%clk 0:00:22.1]} 40. Nxe4+ {[%clk
0:01:08.7]} 40... Nxe4+ {[%clk 0:00:21.9]} 41. Bxe4 {[%clk 0:01:07.9]} 41... Be8
{[%clk 0:00:19.2]} 42. g4 {[%clk 0:01:07.6]} 42... Kc4 {[%clk 0:00:04.5]} 43. g5
{[%clk 0:01:07.1]} 43... Bf7 {[%clk 0:00:04.6]} 44. Bh7 {[%clk 0:01:01.3]} 1-0

[Event "*** Titled Tuesday Blitz"]
[Site "Chess.com"]
[Date "2020.10.20"]
[Round "7"]
[White "grandcoach"]
[Black "Chessbard1972"]
[Result "1-0"]
[WhiteElo "2164"]
[BlackElo "2285"]
[TimeControl "180+1"]
[EndTime "11:19:28 PDT"]
[Termination "grandcoach won by resignation"]

1. e4 {[%clk 0:03:00.9]} 1... c5 {[%clk 0:02:59.4]} 2. b4 {[%clk 0:02:59.7]}
2... b6 {[%clk 0:02:58.1]} 3. Bc4 {[%clk 0:02:56.7]} 3... e6 {[%clk 0:02:55.3]}
4. Nf3 {[%clk 0:02:55.8]} 4... Bb7 {[%clk 0:02:51.9]} 5. bxc5 {[%clk 0:02:55.8]}
5... bxc5 {[%clk 0:02:51]} 6. Nc3 {[%clk 0:02:55.3]} 6... Nf6 {[%clk 0:02:48.4]}
7. d3 {[%clk 0:02:44.9]} 7... Nc6 {[%clk 0:02:35.1]} 8. Rb1 {[%clk 0:02:44.7]}
8... Na5 {[%clk 0:02:25.1]} 9. O-O {[%clk 0:02:36.2]} 9... a6 {[%clk 0:02:20.4]}
10. e5 {[%clk 0:02:28.7]} 10... Nd5 {[%clk 0:02:16.9]} 11. Ne4 {[%clk 0:02:13]}
11... Be7 {[%clk 0:02:14]} 12. Bg5 {[%clk 0:02:06.6]} 12... f6 {[%clk
0:02:07.5]} 13. exf6 {[%clk 0:02:02.4]} 13... gxf6 {[%clk 0:01:59.8]} 14. Ne5
{[%clk 0:01:54.5]} 14... h5 {[%clk 0:01:49.6]} 15. Ng6 {[%clk 0:01:51]} 15...
Rh7 {[%clk 0:01:46.1]} 16. Nxe7 {[%clk 0:01:50]} 16... Qxe7 {[%clk 0:01:45.2]}
17. Bxd5 {[%clk 0:01:42.4]} 17... Bxd5 {[%clk 0:01:42.8]} 18. Bxf6 {[%clk
0:01:37.1]} 18... Qf8 {[%clk 0:01:38.1]} 19. Bc3 {[%clk 0:01:28.2]} 19... Nc6
{[%clk 0:01:30.9]} 20. f4 {[%clk 0:01:20.6]} 20... Nd4 {[%clk 0:01:21.1]} 21.
Bxd4 {[%clk 0:01:17.4]} 21... cxd4 {[%clk 0:01:20.2]} 22. f5 {[%clk 0:01:18]}
22... Bxe4 {[%clk 0:01:16.7]} 23. dxe4 {[%clk 0:00:58.8]} 23... e5 {[%clk
0:01:16.3]} 24. f6 {[%clk 0:00:53.9]} 24... Kf7 {[%clk 0:01:12]} 25. Qd3 {[%clk
0:00:51.6]} 25... Qc5 {[%clk 0:01:04.6]} 26. Rb7 {[%clk 0:00:43.9]} 26... Rd8
{[%clk 0:00:53.3]} 27. Qb3+ {[%clk 0:00:41.4]} 27... Kf8 {[%clk 0:00:46.5]} 28.
Rb8 {[%clk 0:00:34.1]} 28... Rxb8 {[%clk 0:00:43.7]} 29. Qxb8+ {[%clk 0:00:35]}
29... Kf7 {[%clk 0:00:44]} 30. Qb3+ {[%clk 0:00:31]} 30... Kf8 {[%clk
0:00:40.6]} 31. Qb8+ {[%clk 0:00:28.6]} 31... Kf7 {[%clk 0:00:40.5]} 32. Kh1
{[%clk 0:00:29]} 32... h4 {[%clk 0:00:36]} 33. Qb3+ {[%clk 0:00:23.2]} 33... Kf8
{[%clk 0:00:35.6]} 34. f7 {[%clk 0:00:20.3]} 34... h3 {[%clk 0:00:32.5]} 35.
Qb8+ {[%clk 0:00:19.2]} 35... Kg7 {[%clk 0:00:29.2]} 36. f8=Q+ {[%clk
0:00:18.8]} 36... Qxf8 {[%clk 0:00:27.1]} 37. Qxf8+ {[%clk 0:00:19.7]} 1-0

[Event "*** Titled Tuesday Blitz"]
[Site "Chess.com"]
[Date "2020.10.20"]
[Round "7"]
[White "PauloCesarCosta_sad"]
[Black "orestn"]
[Result "0-1"]
[WhiteElo "2263"]
[BlackElo "2427"]
[TimeControl "180+1"]
[EndTime "11:19:30 PDT"]
[Termination "orestn won on time"]

1. Nf3 {[%clk 0:02:15.2]} 1... d5 {[%clk 0:02:57]} 2. d4 {[%clk 0:02:15.1]} 2...
e6 {[%clk 0:02:55.9]} 3. c4 {[%clk 0:02:15.5]} 3... c5 {[%clk 0:02:55.6]} 4.
cxd5 {[%clk 0:02:14.4]} 4... exd5 {[%clk 0:02:56.5]} 5. g3 {[%clk 0:02:14.3]}
5... Nc6 {[%clk 0:02:56.2]} 6. Bg2 {[%clk 0:02:14.3]} 6... Nf6 {[%clk
0:02:57.1]} 7. O-O {[%clk 0:02:14.2]} 7... cxd4 {[%clk 0:02:57.2]} 8. Nxd4
{[%clk 0:02:13]} 8... Bc5 {[%clk 0:02:57.2]} 9. Nb3 {[%clk 0:02:10.5]} 9... Bb6
{[%clk 0:02:57]} 10. Nc3 {[%clk 0:02:10.4]} 10... d4 {[%clk 0:02:57]} 11. Ne4
{[%clk 0:02:07.3]} 11... Nxe4 {[%clk 0:02:50.4]} 12. Bxe4 {[%clk 0:02:08.2]}
12... O-O {[%clk 0:02:50.2]} 13. Bf4 {[%clk 0:02:03.6]} 13... Qf6 {[%clk
0:02:48.8]} 14. Bg2 {[%clk 0:01:57.9]} 14... Rd8 {[%clk 0:02:47.2]} 15. Rc1
{[%clk 0:01:54.7]} 15... Bf5 {[%clk 0:02:33.5]} 16. Qd2 {[%clk 0:01:53.4]} 16...
Rd7 {[%clk 0:02:21.8]} 17. Nc5 {[%clk 0:01:44.4]} 17... Bxc5 {[%clk 0:02:21.5]}
18. Rxc5 {[%clk 0:01:44.4]} 18... Re8 {[%clk 0:02:18.5]} 19. Rfc1 {[%clk
0:01:23.9]} 19... Re6 {[%clk 0:02:13.7]} 20. Bxc6 {[%clk 0:01:10.8]} 20... Rxc6
{[%clk 0:02:10.2]} 21. Rxc6 {[%clk 0:01:08.8]} 21... bxc6 {[%clk 0:02:10.2]} 22.
Bg5 {[%clk 0:01:01.9]} 22... Qe6 {[%clk 0:02:08]} 23. a3 {[%clk 0:00:52.8]}
23... h6 {[%clk 0:02:06.4]} 24. Bf4 {[%clk 0:00:52]} 24... Be4 {[%clk
0:02:02.2]} 25. f3 {[%clk 0:00:46.7]} 25... Bf5 {[%clk 0:01:52]} 26. Rc5 {[%clk
0:00:25.3]} 26... Bg6 {[%clk 0:01:47.3]} 27. Re5 {[%clk 0:00:19.5]} 27... Qb3
{[%clk 0:01:46.5]} 28. Re8+ {[%clk 0:00:17.6]} 28... Kh7 {[%clk 0:01:45.9]} 29.
Rb8 {[%clk 0:00:16.4]} 29... Qd5 {[%clk 0:01:41.3]} 30. Kg2 {[%clk 0:00:15.6]}
30... Bf5 {[%clk 0:01:34.4]} 31. h4 {[%clk 0:00:15]} 31... Qe6 {[%clk
0:01:31.7]} 32. Rb4 {[%clk 0:00:12.9]} 32... c5 {[%clk 0:01:25.8]} 33. Ra4
{[%clk 0:00:12.2]} 33... Bg6 {[%clk 0:01:24.4]} 34. Ra5 {[%clk 0:00:11.9]} 34...
c4 {[%clk 0:01:23.3]} 35. Re5 {[%clk 0:00:11.4]} 35... Qc6 {[%clk 0:01:18.2]}
36. Qb4 {[%clk 0:00:08.8]} 36... d3 {[%clk 0:01:14]} 37. exd3 {[%clk 0:00:07.8]}
37... cxd3 {[%clk 0:01:11.4]} 38. Bd2 {[%clk 0:00:07.2]} 38... h5 {[%clk
0:01:08.7]} 39. Qc5 {[%clk 0:00:06.9]} 39... Qb7 {[%clk 0:01:06.9]} 40. Qb5
{[%clk 0:00:04.5]} 40... Qc8 {[%clk 0:01:05.6]} 41. Qc5 {[%clk 0:00:04.4]} 41...
Rc7 {[%clk 0:01:05.9]} 42. Qd5 {[%clk 0:00:03.1]} 42... Rc2 {[%clk 0:01:04.7]}
43. Rxh5+ {[%clk 0:00:01.8]} 43... Bxh5 {[%clk 0:01:03]} 44. Qxh5+ {[%clk
0:00:02.7]} 44... Kg8 {[%clk 0:01:02.7]} 45. Qg5 {[%clk 0:00:02.2]} 45... Qe8
{[%clk 0:00:58.9]} 0-1

[Event "*** Titled Tuesday Blitz"]
[Site "Chess.com"]
[Date "2020.10.20"]
[Round "7"]
[White "geordie_derraugh"]
[Black "BocharovD"]
[Result "0-1"]
[WhiteElo "2400"]
[BlackElo "2803"]
[TimeControl "180+1"]
[EndTime "11:19:36 PDT"]
[Termination "BocharovD won by resignation"]

1. e4 {[%clk 0:03:00.9]} 1... c5 {[%clk 0:02:59]} 2. Nf3 {[%clk 0:02:59.6]} 2...
d6 {[%clk 0:02:58.9]} 3. Bb5+ {[%clk 0:02:59.6]} 3... Bd7 {[%clk 0:02:56.2]} 4.
Bxd7+ {[%clk 0:02:59.1]} 4... Qxd7 {[%clk 0:02:57.1]} 5. O-O {[%clk 0:02:59.3]}
5... Nf6 {[%clk 0:02:55.1]} 6. Qe2 {[%clk 0:02:59.3]} 6... Nc6 {[%clk
0:02:54.6]} 7. Rd1 {[%clk 0:02:59.3]} 7... e6 {[%clk 0:02:52.9]} 8. d4 {[%clk
0:02:57.1]} 8... cxd4 {[%clk 0:02:52.5]} 9. Nxd4 {[%clk 0:02:58]} 9... Be7
{[%clk 0:02:53]} 10. c4 {[%clk 0:02:58.1]} 10... O-O {[%clk 0:02:52.3]} 11. Nc3
{[%clk 0:02:57.9]} 11... Rac8 {[%clk 0:02:51.2]} 12. f4 {[%clk 0:02:48.9]} 12...
Nxd4 {[%clk 0:02:48.7]} 13. Rxd4 {[%clk 0:02:48.5]} 13... d5 {[%clk 0:02:49]}
14. Kh1 {[%clk 0:02:47]} 14... Bc5 {[%clk 0:02:46.6]} 15. Rd1 {[%clk 0:02:46.6]}
15... Bb4 {[%clk 0:02:42.2]} 16. exd5 {[%clk 0:02:41.7]} 16... Bxc3 {[%clk
0:02:39.8]} 17. dxe6 {[%clk 0:02:35.9]} 17... Qxe6 {[%clk 0:02:37.2]} 18. Qxe6
{[%clk 0:02:35.2]} 18... fxe6 {[%clk 0:02:38.1]} 19. bxc3 {[%clk 0:02:35.2]}
19... Rxc4 {[%clk 0:02:38.8]} 20. Rb1 {[%clk 0:02:28.7]} 20... b6 {[%clk
0:02:38.6]} 21. Re1 {[%clk 0:02:24]} 21... Kf7 {[%clk 0:02:37.9]} 22. Bb2 {[%clk
0:02:19.6]} 22... Rxf4 {[%clk 0:02:34.4]} 23. Re2 {[%clk 0:02:13]} 23... Rd8
{[%clk 0:02:32.5]} 24. Rbe1 {[%clk 0:02:11.9]} 24... Re4 {[%clk 0:02:26.8]} 25.
Rxe4 {[%clk 0:01:41.9]} 25... Nxe4 {[%clk 0:02:27.7]} 26. Kg1 {[%clk 0:01:36.3]}
26... Nc5 {[%clk 0:02:24]} 27. Rf1+ {[%clk 0:01:36.6]} 27... Kg6 {[%clk
0:02:22.8]} 28. Bc1 {[%clk 0:01:31.4]} 28... Rd3 {[%clk 0:02:20.1]} 29. Rf3
{[%clk 0:01:10.3]} 29... Rd1+ {[%clk 0:02:15.6]} 30. Rf1 {[%clk 0:01:09.9]}
30... Rxf1+ {[%clk 0:02:15.6]} 31. Kxf1 {[%clk 0:01:09.9]} 31... Kf5 {[%clk
0:02:16.5]} 32. Ke2 {[%clk 0:01:08.7]} 32... Ke4 {[%clk 0:02:17.1]} 33. Be3
{[%clk 0:01:06.4]} 33... Na4 {[%clk 0:02:12.9]} 34. Bd2 {[%clk 0:00:58.3]} 34...
b5 {[%clk 0:02:12.5]} 35. Be1 {[%clk 0:00:50.6]} 35... a6 {[%clk 0:02:11.7]} 36.
Kd2 {[%clk 0:00:50.9]} 36... Kd5 {[%clk 0:02:01.4]} 37. Kd3 {[%clk 0:00:47.9]}
37... Nc5+ {[%clk 0:02:01.3]} 38. Kc2 {[%clk 0:00:45]} 38... Kc4 {[%clk
0:02:02.2]} 39. Bg3 {[%clk 0:00:44.9]} 39... Nd3 {[%clk 0:01:52.2]} 40. h4
{[%clk 0:00:37.9]} 40... h5 {[%clk 0:01:51]} 41. Kd2 {[%clk 0:00:33]} 41... e5
{[%clk 0:01:47.1]} 42. Kc2 {[%clk 0:00:28.8]} 42... g6 {[%clk 0:01:45.6]} 43.
Kd2 {[%clk 0:00:28.3]} 43... a5 {[%clk 0:01:45.8]} 44. Kc2 {[%clk 0:00:28.2]}
44... a4 {[%clk 0:01:46]} 45. Kd2 {[%clk 0:00:25]} 45... e4 {[%clk 0:01:41.2]}
46. Bc7 {[%clk 0:00:17.9]} 46... b4 {[%clk 0:01:36.2]} 47. cxb4 {[%clk
0:00:16.2]} 47... Nxb4 {[%clk 0:01:37.1]} 48. a3 {[%clk 0:00:10.1]} 48... Nd5
{[%clk 0:01:35.2]} 49. Bd6 {[%clk 0:00:09.9]} 49... Kb3 {[%clk 0:01:35.4]} 50.
Bf8 {[%clk 0:00:08.2]} 50... Kc4 {[%clk 0:01:26.1]} 51. Bd6 {[%clk 0:00:07]}
51... e3+ {[%clk 0:01:26.2]} 52. Ke2 {[%clk 0:00:05.8]} 52... Kd4 {[%clk
0:01:27.1]} 53. Bb8 {[%clk 0:00:05.8]} 53... Ke4 {[%clk 0:01:27.2]} 54. g3
{[%clk 0:00:05.6]} 54... Nc3+ {[%clk 0:01:26.9]} 55. Ke1 {[%clk 0:00:06.1]}
55... Kd3 {[%clk 0:01:27.1]} 56. Ba7 {[%clk 0:00:06.6]} 56... Nb5 {[%clk
0:01:25.9]} 57. Bc5 {[%clk 0:00:06]} 57... Nd4 {[%clk 0:01:26]} 58. Bxd4 {[%clk
0:00:03.4]} 58... Kxd4 {[%clk 0:01:26]} 59. Ke2 {[%clk 0:00:02.8]} 59... Ke4
{[%clk 0:01:26.4]} 0-1

[Event "*** Titled Tuesday Blitz"]
[Site "Chess.com"]
[Date "2020.10.20"]
[Round "7"]
[White "GothamChess"]
[Black "AustrianFalcon"]
[Result "0-1"]
[WhiteElo "2600"]
[BlackElo "2462"]
[TimeControl "180+1"]
[EndTime "11:19:36 PDT"]
[Termination "AustrianFalcon won on time"]

1. e4 {[%clk 0:03:00.9]} 1... g6 {[%clk 0:02:59.5]} 2. d4 {[%clk 0:03:00.5]}
2... Bg7 {[%clk 0:02:59]} 3. Nf3 {[%clk 0:03:00.9]} 3... d6 {[%clk 0:02:59]} 4.
Bc4 {[%clk 0:03:00.7]} 4... Nf6 {[%clk 0:02:58.5]} 5. Qe2 {[%clk 0:03:01.1]}
5... O-O {[%clk 0:02:58.3]} 6. O-O {[%clk 0:03:01.6]} 6... Bg4 {[%clk
0:02:51.9]} 7. h3 {[%clk 0:02:54.4]} 7... Bxf3 {[%clk 0:02:51.7]} 8. Qxf3 {[%clk
0:02:55.3]} 8... Nc6 {[%clk 0:02:52.2]} 9. c3 {[%clk 0:02:54.9]} 9... e5 {[%clk
0:02:46.9]} 10. Rd1 {[%clk 0:02:52.1]} 10... exd4 {[%clk 0:02:41.5]} 11. cxd4
{[%clk 0:02:45.5]} 11... Nd7 {[%clk 0:02:38.3]} 12. Be3 {[%clk 0:02:35.9]} 12...
Nb6 {[%clk 0:02:33.6]} 13. Bb3 {[%clk 0:02:32.3]} 13... Na5 {[%clk 0:02:32.5]}
14. Bc2 {[%clk 0:02:26.1]} 14... Nac4 {[%clk 0:02:25.2]} 15. Bc1 {[%clk
0:02:24.8]} 15... Qe7 {[%clk 0:02:12.3]} 16. a4 {[%clk 0:02:21.1]} 16... Na5
{[%clk 0:01:54.3]} 17. Nc3 {[%clk 0:02:06.5]} 17... Nc6 {[%clk 0:01:51.3]} 18.
Be3 {[%clk 0:01:50.6]} 18... a5 {[%clk 0:01:45.1]} 19. Bb3 {[%clk 0:01:48.2]}
19... Kh8 {[%clk 0:01:38.9]} 20. Rac1 {[%clk 0:01:46.2]} 20... f5 {[%clk
0:01:36.3]} 21. Nd5 {[%clk 0:01:31]} 21... Nxd5 {[%clk 0:01:13.9]} 22. Bxd5
{[%clk 0:00:59.3]} 22... f4 {[%clk 0:01:12.8]} 23. Bd2 {[%clk 0:00:43.8]} 23...
Nxd4 {[%clk 0:01:12.5]} 24. Qd3 {[%clk 0:00:42.6]} 24... f3 {[%clk 0:01:06.7]}
25. g3 {[%clk 0:00:17.5]} 25... c6 {[%clk 0:01:01.9]} 26. Ba2 {[%clk 0:00:13.5]}
26... Ne2+ {[%clk 0:01:01.7]} 27. Kh2 {[%clk 0:00:13.8]} 27... Nxc1 {[%clk
0:01:00]} 28. Rxc1 {[%clk 0:00:14.7]} 28... Rae8 {[%clk 0:00:59.9]} 29. Re1
{[%clk 0:00:13.7]} 29... h5 {[%clk 0:00:47.1]} 30. e5 {[%clk 0:00:13.5]} 30...
Bxe5 {[%clk 0:00:44.7]} 31. Qxg6 {[%clk 0:00:13.2]} 31... Qh7 {[%clk 0:00:39.1]}
32. Qg5 {[%clk 0:00:10.7]} 32... h4 {[%clk 0:00:34.5]} 33. Re4 {[%clk
0:00:01.3]} 33... hxg3+ {[%clk 0:00:32.6]} 34. fxg3 {[%clk 0:00:01.2]} 34...
Qxe4 {[%clk 0:00:30.8]} 0-1